{"text_format":"1","workbook":"xlsx","n_sheets":1,"sheets":["Tabelle1"],"not_rendered":{"charts":0,"images":0,"macros":1,"external_links":0,"defined_names":7,"comments":0,"pivot_tables":0},"unopened":[],"bounds":{"document_bytes":16777216,"sheet_cells":100000,"rows_first":2000,"rows_last":500,"rows_between":2000,"halvings":0,"cell_chars":16384,"cell_head_chars":4096},"cells_cut":0,"cells_raw":0,"read":"whole","date_system":"1900"}

{"sheet":"Tabelle1","index":0,"n_rows":57,"n_cols":29,"rows_kept":57,"cut":false,"hidden":false,"merged":[]}
[]
[]
[]
[]
[]
[]
[]
[]
[]
["",null,null,null,null,"",null,null,null,null,"",null,null,null,null,"",null,null,null,null,"",null,null,null,null,""]
["Herrn",null,null,null,null,{"$f":"$A$11","v":"Herrn"},null,null,null,null,{"$f":"$A$11","v":"Herrn"},null,null,null,null,{"$f":"$A$11","v":"Herrn"},null,null,null,null,{"$f":"$A$11","v":"Herrn"},null,null,null,null,{"$f":"$A$11","v":"Herrn"}]
["Walli Zuber",null,null,null,null,{"$f":"$A$12","v":"Walli Zuber"},null,null,null,null,{"$f":"$A$12","v":"Walli Zuber"},null,null,null,null,{"$f":"$A$12","v":"Walli Zuber"},null,null,null,null,{"$f":"$A$12","v":"Walli Zuber"},null,null,null,null,{"$f":"$A$12","v":"Walli Zuber"}]
["Teststr. 1",null,null,null,null,{"$f":"$A$13","v":"Teststr. 1"},null,null,null,null,{"$f":"$A$13","v":"Teststr. 1"},null,null,null,null,{"$f":"$A$13","v":"Teststr. 1"},null,null,null,null,{"$f":"$A$13","v":"Teststr. 1"},null,null,null,null,{"$f":"$A$13","v":"Teststr. 1"}]
["12345 Testort",null,null,null,null,{"$f":"$A$14","v":"12345 Testort"},null,null,null,null,{"$f":"$A$14","v":"12345 Testort"},null,null,null,null,{"$f":"$A$14","v":"12345 Testort"},null,null,null,null,{"$f":"$A$14","v":"12345 Testort"},null,null,null,null,{"$f":"$A$14","v":"12345 Testort"}]
["",null,null,null,null,{"$f":"$A$15","v":""},null,null,null,null,{"$f":"$A$15","v":""},null,null,null,null,{"$f":"$A$15","v":""},null,null,null,null,{"$f":"$A$15","v":""},null,null,null,null,{"$f":"$A$15","v":""}]
["",null,null,null,null,{"$f":"$A$16","v":""},null,null,null,null,{"$f":"$A$16","v":""},null,null,null,null,{"$f":"$A$16","v":""},null,null,null,null,{"$f":"$A$16","v":""},null,null,null,null,{"$f":"$A$16","v":""}]
["Deutschland",null,null,null,null,{"$f":"$A$17","v":"Deutschland"},null,null,null,null,{"$f":"$A$17","v":"Deutschland"},null,null,null,null,{"$f":"$A$17","v":"Deutschland"},null,null,null,null,{"$f":"$A$17","v":"Deutschland"},null,null,null,null,{"$f":"$A$17","v":"Deutschland"}]
[]
["",null,null,null,null,"",null,null,null,null,"",null,null,null,null,"",null,null,null,null,"",null,null,null,null,""]
["",null,null,null,null,"",null,null,null,null,"",null,null,null,null,"",null,null,null,null,"",null,null,null,null,""]
["",null,null,null,null,"",null,null,null,null,"",null,null,null,null,"",null,null,null,null,"",null,null,null,null,""]
[]
["Rechnungs-Nr.   2X5 - 0001",null,"Datum 28.03.2025","Ko",null,{"$f":"$A$23","v":"Rechnungs-Nr.   2X5 - 0001"},null,{"$f":"$C$23","v":"Datum 28.03.2025"},{"$f":"$D$23","v":"Ko"},null,{"$f":"$A$23","v":"Rechnungs-Nr.   2X5 - 0001"},null,{"$f":"$C$23","v":"Datum 28.03.2025"},{"$f":"$D$23","v":"Ko"},null,{"$f":"$A$23","v":"Rechnungs-Nr.   2X5 - 0001"},null,{"$f":"$C$23","v":"Datum 28.03.2025"},{"$f":"$D$23","v":"Ko"},null,{"$f":"$A$23","v":"Rechnungs-Nr.   2X5 - 0001"},null,{"$f":"$C$23","v":"Datum 28.03.2025"},{"$f":"$D$23","v":"Ko"},null,{"$f":"$A$23","v":"Rechnungs-Nr.   2X5 - 0001"},null,{"$f":"$C$23","v":"Datum 28.03.2025"},{"$f":"$D$23","v":"Ko"}]
[null,null,{"$f":"+$D$24","v":2500132},2500132,null,null,null,{"$f":"C24","v":2500132},{"$f":"D24","v":2500132},null,null,null,{"$f":"H24","v":2500132},{"$f":"I24","v":2500132},null,null,null,{"$f":"M24","v":2500132},{"$f":"N24","v":2500132},null,null,null,{"$f":"R24","v":2500132},{"$f":"S24","v":2500132},null,null,null,{"$f":"W24","v":2500132},{"$f":"X24","v":2500132}]
["Lieferungen und Leistungen","Menge / Std.","Einzelpreis","Netto-Preis",null,"Lieferungen und Leistungen","Menge / Std.","Einzelpreis","Netto-Preis",null,"Lieferungen und Leistungen","Menge / Std.","Einzelpreis","Netto-Preis",null,"Lieferungen und Leistungen","Menge / Std.","Einzelpreis","Netto-Preis",null,"Lieferungen und Leistungen","Menge / Std.","Einzelpreis","Netto-Preis",null,"Lieferungen und Leistungen","Menge / Std.","Einzelpreis","Netto-Preis"]
[null,null,null,8000,null,"Übertrag Seite 1",null,null,{"$f":"D51","v":17115},null,"Übertrag Seite 2",null,null,{"$f":"I51","v":24892},null,"Übertrag Seite 3",null,null,{"$f":"N51","v":32669},null,"Übertrag Seite 4",null,null,{"$f":"S51","v":40446},null,"Übertrag Seite 5",null,null,{"$f":"X51","v":48223}]
["Test",null,null,478.19,null,"Test 2",null,null,"",null,"Test 3",null,null,"",null,null,null,null,"",null,null,null,null,"",null,null,null,null,""]
[null,null,null,0.81,null,null,null,null,"",null,null,null,null,"",null,null,null,null,"",null,null,null,null,"",null,null,null,null,""]
[null,null,null,7777,null,null,null,null,7777,null,null,null,null,7777,null,null,null,null,7777,null,null,null,null,7777,null,null,null,null,7777]
[null,null,null,9,null,null,null,null,"",null,null,null,null,"",null,null,null,null,"",null,null,null,null,"",null,null,null,null,""]
[null,null,null,850,null,null,null,null,"",null,null,null,null,"",null,null,null,null,"",null,null,null,null,"",null,null,null,null,""]
[null,null,null,"",null,null,null,null,"",null,null,null,null,"",null,null,null,null,"",null,null,null,null,"",null,null,null,null,""]
[null,null,null,"",null,null,null,null,"",null,null,null,null,"",null,null,null,null,"",null,null,null,null,"",null,null,null,null,""]
[null,null,null,"",null,null,null,null,"",null,null,null,null,"",null,null,null,null,"",null,null,null,null,"",null,null,null,null,""]
["<Seite 1",null,null,"",null,{"$f":"\"<Seite \"& ROUND((COLUMN(F35))/5+1,0)","v":"<Seite 2"},null,null,"",null,{"$f":"\"<Seite \"& ROUND((COLUMN(K35))/5+1,0)","v":"<Seite 3"},null,null,"",null,{"$f":"\"<Seite \"& ROUND((COLUMN(P35))/5+1,0)","v":"<Seite 4"},null,null,"",null,{"$f":"\"<Seite \"& ROUND((COLUMN(U35))/5+1,0)","v":"<Seite 5"},null,null,"",null,{"$f":"\"<Seite \"& ROUND((COLUMN(Z35))/5+1,0)","v":"<Seite 6"},null,null,""]
[null,null,null,"",null,null,null,null,"",null,null,null,null,"",null,null,null,null,"",null,null,null,null,"",null,null,null,null,""]
[null,null,null,"",null,null,null,null,"",null,null,null,null,"",null,null,null,null,"",null,null,null,null,"",null,null,null,null,""]
[null,null,null,"",null,null,null,null,"",null,null,null,null,"",null,null,null,null,"",null,null,null,null,"",null,null,null,null,""]
[null,null,null,"",null,null,null,null,"",null,null,null,null,"",null,null,null,null,"",null,null,null,null,"",null,null,null,null,""]
[null,null,null,"",null,null,null,null,"",null,null,null,null,"",null,null,null,null,"",null,null,null,null,"",null,null,null,null,""]
[null,null,null,"",null,null,null,null,"",null,null,null,null,"",null,null,null,null,"",null,null,null,null,"",null,null,null,null,""]
[null,null,null,"",null,null,null,null,"",null,null,null,null,"",null,null,null,null,"",null,null,null,null,"",null,null,null,null,""]
[null,null,null,"",null,null,null,null,"",null,null,null,null,"",null,null,null,null,"",null,null,null,null,"",null,null,null,null,""]
[null,null,null,"",null,null,null,null,"",null,null,null,null,"",null,null,null,null,"",null,null,null,null,"",null,null,null,null,""]
[null,null,null,"",null,null,null,null,"",null,null,null,null,"",null,null,null,null,"",null,null,null,null,"",null,null,null,null,""]
[null,null,null,"",null,null,null,null,"",null,null,null,null,"",null,null,null,null,"",null,null,null,null,"",null,null,null,null,""]
[null,null,null,"",null,null,null,null,"",null,null,null,null,"",null,null,null,null,"",null,null,null,null,"",null,null,null,null,""]
[null,null,null,"",null,null,null,null,"",null,null,null,null,"",null,null,null,null,"",null,null,null,null,"",null,null,null,null,""]
[null,null,null,"",null,null,null,null,"",null,null,null,null,"",null,null,null,null,"",null,null,null,null,"",null,null,null,null,""]
[null,null,null,"",null,null,null,null,"",null,null,null,null,"",null,null,null,null,"",null,null,null,null,"",null,null,null,null,""]
[null,null,"Netto-End-Betrag",{"$f":"SUM(D26:D50)","v":17115},null,null,null,"Netto-End-Betrag",{"$f":"SUM(I26:I50)","v":24892},null,null,null,"Netto-End-Betrag",{"$f":"SUM(N26:N50)","v":32669},null,null,null,"Netto-End-Betrag",{"$f":"SUM(S26:S50)","v":40446},null,null,null,"Netto-End-Betrag",{"$f":"SUM(X26:X50)","v":48223},null,null,null,"Netto-End-Betrag",{"$f":"SUM(AC26:AC50)","v":56000}]
["Rechnungen sofort zahlbar ohne Abzug.",null,null,null,null,"Rechnungen sofort zahlbar ohne Abzug.",null,null,null,null,"Rechnungen sofort zahlbar ohne Abzug.",null,null,null,null,"Rechnungen sofort zahlbar ohne Abzug.",null,null,null,null,"Rechnungen sofort zahlbar ohne Abzug.",null,null,null,null,"Rechnungen sofort zahlbar ohne Abzug."]
["Nichtunternehmer müssen diese Rechnung 2 Jahre aufbewahren §14b(1)Satz5UStG",null,null,null,null,"Nichtunternehmer müssen diese Rechnung 2 Jahre aufbewahren §14b(1)Satz5UStG",null,null,null,null,"Nichtunternehmer müssen diese Rechnung 2 Jahre aufbewahren §14b(1)Satz5UStG",null,null,null,null,"Nichtunternehmer müssen diese Rechnung 2 Jahre aufbewahren §14b(1)Satz5UStG",null,null,null,null,"Nichtunternehmer müssen diese Rechnung 2 Jahre aufbewahren §14b(1)Satz5UStG",null,null,null,null,"Nichtunternehmer müssen diese Rechnung 2 Jahre aufbewahren §14b(1)Satz5UStG"]
["Bis zur vollständigen Zahlung des Kaufpreises bleibt die gelieferte Ware unser Eigentum.",null,null,null,null,"Bis zur vollständigen Zahlung des Kaufpreises bleibt die gelieferte Ware unser Eigentum.",null,null,null,null,"Bis zur vollständigen Zahlung des Kaufpreises bleibt die gelieferte Ware unser Eigentum.",null,null,null,null,"Bis zur vollständigen Zahlung des Kaufpreises bleibt die gelieferte Ware unser Eigentum.",null,null,null,null,"Bis zur vollständigen Zahlung des Kaufpreises bleibt die gelieferte Ware unser Eigentum.",null,null,null,null,"Bis zur vollständigen Zahlung des Kaufpreises bleibt die gelieferte Ware unser Eigentum."]
["Mit Bezahlung der letzten Rate geht das Eigentum ohne weiteres auf den Käufer über.",null,null,null,null,"Mit Bezahlung der letzten Rate geht das Eigentum ohne weiteres auf den Käufer über.",null,null,null,null,"Mit Bezahlung der letzten Rate geht das Eigentum ohne weiteres auf den Käufer über.",null,null,null,null,"Mit Bezahlung der letzten Rate geht das Eigentum ohne weiteres auf den Käufer über.",null,null,null,null,"Mit Bezahlung der letzten Rate geht das Eigentum ohne weiteres auf den Käufer über.",null,null,null,null,"Mit Bezahlung der letzten Rate geht das Eigentum ohne weiteres auf den Käufer über."]
["Der Käufer verpflichtet sich bis zur vollständigen Bezahlung des Kaufpreises weder durch",null,null,null,null,"Der Käufer verpflichtet sich bis zur vollständigen Bezahlung des Kaufpreises weder durch",null,null,null,null,"Der Käufer verpflichtet sich bis zur vollständigen Bezahlung des Kaufpreises weder durch",null,null,null,null,"Der Käufer verpflichtet sich bis zur vollständigen Bezahlung des Kaufpreises weder durch",null,null,null,null,"Der Käufer verpflichtet sich bis zur vollständigen Bezahlung des Kaufpreises weder durch",null,null,null,null,"Der Käufer verpflichtet sich bis zur vollständigen Bezahlung des Kaufpreises weder durch"]
["Verkauf, Verpfändung, Vermietung, Verleihung oder in sonstiger Weise über die Ware zu verfügen.",null,null,null,null,"Verkauf, Verpfändung, Vermietung, Verleihung oder in sonstiger Weise über die Ware zu verfügen.",null,null,null,null,"Verkauf, Verpfändung, Vermietung, Verleihung oder in sonstiger Weise über die Ware zu verfügen.",null,null,null,null,"Verkauf, Verpfändung, Vermietung, Verleihung oder in sonstiger Weise über die Ware zu verfügen.",null,null,null,null,"Verkauf, Verpfändung, Vermietung, Verleihung oder in sonstiger Weise über die Ware zu verfügen.",null,null,null,null,"Verkauf, Verpfändung, Vermietung, Verleihung oder in sonstiger Weise über die Ware zu verfügen."]